lending/lending_fUSD_20250425
["ID","MTS","AMOUNT","RATE_DAILY","PERIOD"]
[358977113,1745599845516,-519.52,0.00030136,2]
[358977114,1745599845527,-500.0,0.00030136,2]
[358977115,1745599845537,-571.05,0.00030136,2]
[358977116,1745599845547,-500.0,0.00030136,2]
[358977117,1745599845558,-500.0,0.00030136,2]
[358977118,1745599845568,-500.0,0.00030136,2]
[358977119,1745599845579,-725.26,0.00030136,2]
[358977120,1745599845588,-500.0,0.00030136,2]
[358977121,1745599845599,-1036.47,0.00030136,2]
[358977122,1745599845610,-500.0,0.00030136,2]
[358977123,1745599845622,-772.02,0.00030136,2]
[358977124,1745599845632,-500.0,0.00030136,2]
[358977125,1745599845745,-672.16,0.00030136,2]
[358977126,1745599845755,-500.0,0.00030136,2]
[358977127,1745599845770,-179.41990674,0.00030136,2]
[358977128,1745599845781,-500.0,0.00030136,2]
[358977129,1745599845796,-500.0,0.00030136,2]
[358977130,1745599845807,-500.0,0.00030136,2]
[358977131,1745599845816,-500.0,0.00030136,2]
[358977132,1745599845827,-500.0,0.00030136,2]
[358977133,1745599845836,-500.0,0.00030136,2]
[358977134,1745599845846,-500.0,0.00030136,2]
[358977135,1745599845855,-1338.54,0.00030136,2]
[358977136,1745599845866,-500.0,0.00030136,2]
[358977137,1745599845875,-500.0,0.00030136,2]
[358977138,1745599845885,-636.3,0.00030136,2]
[358977139,1745599845894,-500.0,0.00030136,2]
[358977140,1745599845905,-2654.69,0.00030136,2]
[358977141,1745599845915,-500.0,0.00030136,2]
[358977142,1745599845925,-500.0,0.00030136,2]
[358977143,1745599845935,-573.9869886,0.00030136,2]
[358977144,1745599845944,-866.37,0.00030136,2]
[358977145,1745599845954,-500.0,0.00030136,2]
[358977146,1745599845963,-500.0,0.00030136,2]
[358977147,1745599845973,-500.0,0.00030136,2]
[358977148,1745599845983,-500.0,0.00030136,2]
[358977149,1745599845993,-500.0,0.00030136,2]
[358977150,1745599846002,-500.0,0.00030136,2]
[358977151,1745599846011,-500.0,0.00030136,2]
[358977152,1745599846021,-500.0,0.00030136,2]
[358977153,1745599846030,-500.0,0.00030136,2]
[358977154,1745599846040,-500.0,0.00030136,2]
[358977155,1745599846050,-500.0,0.00030136,2]
[358977156,1745599846060,-500.0,0.00030136,2]
[358977157,1745599846069,-500.0,0.00030136,2]
[358977158,1745599846078,-500.0,0.00030136,2]
[358977159,1745599846087,-632.54,0.00030136,2]
[358977160,1745599846097,-790.17,0.00030136,2]
[358977161,1745599846106,-500.0,0.00030136,2]
[358977162,1745599846115,-500.0,0.00030136,2]
[358977163,1745599846124,-563.74704491,0.00030136,2]
[358977164,1745599846134,-209.21241495,0.00030136,2]
[358977165,1745599846143,-500.0,0.00030136,2]
[358977166,1745599846153,-1128.15,0.00030136,2]
[358977167,1745599846162,-500.0,0.00030136,2]
[358977168,1745599846172,-500.0,0.00030136,2]
[358977169,1745599846182,-500.0,0.00030136,2]
[358977170,1745599846192,-500.0,0.00030136,2]
[358977171,1745599846214,-500.0,0.00030136,2]
[358977172,1745599846225,-500.0,0.00030136,2]
[358977173,1745599846235,-1884.25,0.00030136,2]
[358977174,1745599846245,-549.59,0.00030136,2]
[358977175,1745599846255,-500.0,0.00030136,2]
[358977176,1745599846265,-603.47917906,0.00030136,2]
[358977177,1745599846275,-500.0,0.00030136,2]
[358977178,1745599846285,-500.0,0.00030136,2]
[358977179,1745599846296,-1195.88,0.00030136,2]
[358977180,1745599846306,-996.53,0.00030136,2]
[358977181,1745599846316,-500.0,0.00030136,2]
[358977182,1745599846326,-500.0,0.00030136,2]
[358977183,1745599846336,-500.0,0.00030136,2]
[358977184,1745599846346,-500.0,0.00030136,2]
[358977185,1745599846355,-500.0,0.00030136,2]
[358977186,1745599846365,-614.63,0.00030136,2]
[358977187,1745599846375,-500.0,0.00030136,2]
[358977188,1745599846386,-500.0,0.00030136,2]
[358977189,1745599846396,-1967.02,0.00030136,2]
[358977190,1745599846407,-500.0,0.00030136,2]
[358977191,1745599846417,-500.0,0.00030136,2]
[358977192,1745599846427,-500.0,0.00030136,2]
[358977193,1745599846438,-2817.71,0.00030136,2]
[358977194,1745599846448,-500.0,0.00030136,2]
[358977195,1745599846458,-500.0,0.00030136,2]
[358977196,1745599846468,-500.0,0.00030136,2]
[358977197,1745599846479,-500.0,0.00030136,2]
[358977198,1745599846489,-513.8119682,0.00030136,2]
[358977199,1745599846498,-500.0,0.00030136,2]
[358977200,1745599846508,-500.0,0.00030136,2]
[358977201,1745599846518,-500.0,0.00030136,2]
[358977202,1745599846528,-500.0,0.00030136,2]
[358977203,1745599846538,-1685.06,0.00030136,2]
[358977204,1745599846547,-937.03,0.00030136,2]
[358977205,1745599846558,-500.0,0.00030136,2]
[358977206,1745599846567,-500.0,0.00030136,2]
[358977207,1745599846577,-498.02399997,0.00030136,2]
[358977208,1745599846587,-500.0,0.00030136,2]
[358977209,1745599846596,-990.82,0.00030136,2]
[358977210,1745599846606,-500.0,0.00030136,2]
[358977211,1745599846617,-500.0,0.00030136,2]
[358977212,1745599846626,-500.0,0.00030136,2]
[358977213,1745599846636,-500.0,0.00030136,2]
[358977214,1745599846651,-1231.85,0.00030136,2]
[358977215,1745599846662,-500.0,0.00030136,2]
[358977216,1745599846672,-949.46,0.00030136,2]
[358977217,1745599846682,-500.0,0.00030136,2]
[358977218,1745599846691,-500.0,0.00030136,2]
[358977219,1745599846701,-500.0,0.00030136,2]
[358977220,1745599846711,-529.21511513,0.00030136,2]
[358977221,1745599846722,-517.20263337,0.00030136,2]
[358977222,1745599846732,-500.0,0.00030136,2]
[358977223,1745599846742,-772.93,0.00030136,2]
[358977224,1745599846752,-500.0,0.00030136,2]
[358977225,1745599846762,-500.0,0.00030136,2]
[358977226,1745599846772,-500.0,0.00030136,2]
[358977227,1745599846784,-649.08,0.00030136,2]
[358977228,1745599846797,-645.19,0.00030136,2]
[358977229,1745599846807,-500.0,0.00030136,2]
[358977230,1745599846817,-500.0,0.00030136,2]
[358977231,1745599846827,-464.99698593,0.00030136,2]
[358977232,1745599846838,-500.0,0.00030136,2]
[358977233,1745599846848,-500.0,0.00030136,2]
[358977234,1745599846857,-500.0,0.00030136,2]
[358977235,1745599846869,-500.0,0.00030136,2]
[358977236,1745599846879,-500.0,0.00030136,2]
[358977237,1745599846889,-500.0,0.00030136,2]
[358977238,1745599846899,-500.0,0.00030136,2]
[358977239,1745599846910,-660.2,0.00030136,2]
[358977240,1745599846920,-500.0,0.00030136,2]
[358977241,1745599846930,-500.0,0.00030136,2]
[358977242,1745599846940,-521.17978049,0.00030136,2]
[358977243,1745599846950,-500.0,0.00030136,2]
[358977244,1745599846960,-500.0,0.00030136,2]
[358977245,1745599846969,-500.0,0.00030136,2]
[358977246,1745599846979,-517.92402145,0.00030136,2]
[358977247,1745599846989,-500.0,0.00030136,2]
[358977248,1745599846999,-918.44,0.00030136,2]
[358977249,1745599847009,-500.0,0.00030136,2]
[358977250,1745599847019,-542.54,0.00030136,2]
[358977251,1745599847029,-500.0,0.00030136,2]
[358977252,1745599847039,-500.0,0.00030136,2]
[358977253,1745599847049,-1114.71,0.00030136,2]
[358977254,1745599847060,-500.0,0.00030136,2]
[358977255,1745599847070,-519.93809644,0.00030136,2]
[358977256,1745599847079,-500.0,0.00030136,2]
[358977257,1745599847089,-563.92463906,0.00030136,2]
[358977258,1745599847104,-594.93603749,0.00030136,2]
[358977259,1745599847114,-572.38732694,0.00030136,2]
[358977260,1745599847124,-500.0,0.00030136,2]
[358977261,1745599847134,-508.41,0.00030136,2]
[358977262,1745599847144,-942.23,0.00030136,2]
[358977263,1745599847154,-548.71,0.00030136,2]
[358977264,1745599847163,-500.0,0.00030136,2]
[358977265,1745599847174,-500.0,0.00030136,2]
[358977266,1745599847184,-570.26,0.00030136,2]
[358977267,1745599847194,-500.0,0.00030136,2]
[358977268,1745599847203,-500.0,0.00030136,2]
[358977269,1745599847214,-1003.55,0.00030136,2]
[358977270,1745599847224,-500.0,0.00030136,2]
[358977271,1745599847234,-958.21,0.00030136,2]
[358977272,1745599847244,-1082.5,0.00030136,2]
[358977273,1745599847254,-515.10608183,0.00030136,2]
[358977274,1745599847265,-570.55300334,0.00030136,2]
[358977275,1745599847275,-670.3,0.00030136,2]
[358977276,1745599847285,-500.0,0.00030136,2]
[358977277,1745599847296,-500.0,0.00030136,2]
[358977278,1745599847306,-235.74284125,0.00030136,2]
[358977279,1745599847317,-500.0,0.00030136,2]
[358977280,1745599847327,-808.52,0.00030136,2]
[358977281,1745599847338,-500.0,0.00030136,2]
[358977282,1745599847348,-500.0,0.00030136,2]
[358977283,1745599847359,-960.51,0.00030136,2]
[358977284,1745599847370,-500.0,0.00030136,2]
[358977285,1745599847381,-707.89,0.00030136,2]
[358977286,1745599847392,-500.0,0.00030136,2]
[358977287,1745599847403,-189.12709591,0.00030136,2]
[358977288,1745599847414,-500.0,0.00030136,2]
[358977289,1745599847425,-514.31014724,0.00030136,2]
[358977290,1745599847436,-500.0,0.00030136,2]
[358977291,1745599847446,-500.0,0.00030136,2]
[358977292,1745599847455,-500.0,0.00030136,2]
[358977293,1745599847465,-500.0,0.00030136,2]
[358977294,1745599847474,-531.01875514,0.00030136,2]
[358977295,1745599847484,-500.0,0.00030136,2]
[358977296,1745599847494,-500.0,0.00030136,2]
[358977297,1745599847504,-514.02876276,0.00030136,2]
[358977298,1745599847513,-708.09,0.00030136,2]
[358977299,1745599847523,-500.0,0.00030136,2]
[358977300,1745599847537,-500.86,0.00030136,2]
[358977301,1745599847547,-500.0,0.00030136,2]
[358977302,1745599847557,-500.0,0.00030136,2]
[358977303,1745599847567,-500.0,0.00030136,2]
[358977304,1745599847578,-500.0,0.00030136,2]
[358977305,1745599847587,-500.0,0.00030136,2]
[358977306,1745599847597,-529.29,0.00030136,2]
[358977307,1745599847607,-766.01,0.00030136,2]
[358977308,1745599847617,-531.43149761,0.00030136,2]
[358977309,1745599847627,-500.0,0.00030136,2]
[358977310,1745599847639,-1055.72,0.00030136,2]
[358977311,1745599847651,-500.0,0.00030136,2]
[358977312,1745599847662,-500.0,0.00030136,2]
[358977313,1745599847672,-500.0,0.00030136,2]
[358977314,1745599847684,-500.0,0.00030136,2]
[358977315,1745599847696,-530.27331446,0.00030136,2]
[358977316,1745599847706,-910.22,0.00030136,2]
[358977317,1745599847717,-500.0,0.00030136,2]
[358977318,1745599847728,-500.0,0.00030136,2]
[358977319,1745599847738,-500.0,0.00030136,2]
[358977320,1745599847747,-500.0,0.00030136,2]
[358977321,1745599847757,-500.0,0.00030136,2]
[358977322,1745599847767,-500.0,0.00030136,2]
[358977323,1745599847776,-500.0,0.00030136,2]
[358977324,1745599847787,-500.0,0.00030136,2]
[358977325,1745599847798,-1008.08,0.00030136,2]
[358977326,1745599847807,-501.26,0.00030136,2]
[358977327,1745599847817,-573.25,0.00030136,2]
[358977328,1745599847828,-500.0,0.00030136,2]
[358977329,1745599847841,-542.14184706,0.00030136,2]
[358977330,1745599847851,-698.95,0.00030136,2]
[358977331,1745599847863,-500.0,0.00030136,2]
[358977332,1745599847873,-500.0,0.00030136,2]
[358977333,1745599847883,-532.80945532,0.00030136,2]
[358977334,1745599847892,-545.88,0.00030136,2]
[358977335,1745599847902,-576.48,0.00030136,2]
[358977336,1745599847911,-513.65343823,0.00030136,2]
[358977337,1745599847921,-574.02938754,0.00030136,2]
[358977338,1745599847930,-500.0,0.00030136,2]
[358977339,1745599847940,-1896.31,0.00030136,2]
[358977340,1745599847950,-500.0,0.00030136,2]
[358977341,1745599847962,-500.0,0.00030136,2]
[358977342,1745599847971,-500.0,0.00030136,2]
[358977343,1745599847992,-500.0,0.00030136,2]
[358977344,1745599848002,-500.0,0.00030136,2]
[358977345,1745599848012,-566.52,0.00030136,2]
[358977346,1745599848023,-500.0,0.00030136,2]
[358977347,1745599848033,-500.0,0.00030136,2]
[358977348,1745599848044,-1071.29,0.00030136,2]
[358977349,1745599848054,-715.3,0.00030136,2]
[358977350,1745599848064,-758.06,0.00030136,2]
[358977351,1745599848073,-500.0,0.00030136,2]
[358977352,1745599848083,-500.0,0.00030136,2]
[358977353,1745599848093,-812.96,0.00030136,2]
[358977354,1745599848104,-1799.78,0.00030136,2]
[358977355,1745599848114,-525.25,0.00030136,2]
[358977356,1745599848124,-262.30899233,0.00030136,2]
[358977357,1745599848135,-492.71075986,0.00030136,2]
[358977358,1745599848145,-500.0,0.00030136,2]
[358977359,1745599848155,-500.0,0.00030136,2]
[358977360,1745599848165,-500.0,0.00030136,2]
[358977361,1745599848175,-500.0,0.00030136,2]
[358977362,1745599848187,-500.0,0.00030136,2]
[358977363,1745599848198,-500.0,0.00030136,2]
[358977364,1745599848208,-500.0,0.00030136,2]
[358977365,1745599848218,-500.0,0.00030136,2]
[358977366,1745599848229,-932.79,0.00030136,2]
[358977367,1745599848240,-500.0,0.00030136,2]
[358977368,1745599848249,-501.19941665,0.00030136,2]
[358977369,1745599848260,-500.0,0.00030136,2]
[358977370,1745599848270,-500.0,0.00030136,2]
[358977371,1745599848280,-500.0,0.00030136,2]
[358977372,1745599848290,-516.57765654,0.00030136,2]
[358977373,1745599848300,-510.93,0.00030136,2]
[358977374,1745599848310,-500.0,0.00030136,2]
[358977375,1745599848320,-500.0,0.00030136,2]
[358977376,1745599848330,-500.0,0.00030136,2]
[358977377,1745599848341,-500.0,0.00030136,2]
[358977378,1745599848352,-500.0,0.00030136,2]
[358977379,1745599848364,-669.03,0.00030136,2]
[358977380,1745599848376,-1170.9,0.00030136,2]
[358977381,1745599848387,-500.0,0.00030136,2]
[358977382,1745599848399,-500.0,0.00030136,2]
[358977383,1745599848411,-516.33929706,0.00030136,2]
[358977384,1745599848428,-529.438925,0.00030136,2]
[358977385,1745599848439,-500.0,0.00030136,2]
[358977386,1745599848451,-760.54,0.00030136,2]
[358977387,1745599848463,-1005.63995471,0.00030136,2]
[358977388,1745599848474,-500.0,0.00030136,2]
[358977389,1745599848486,-500.0,0.00030136,2]
[358977390,1745599848498,-1775.25,0.00030136,2]
[358977391,1745599848510,-646.88,0.00030136,2]
[358977392,1745599848521,-5169.89,0.00030136,2]
[358977393,1745599848533,-500.0,0.00030136,2]
[358977394,1745599848544,-794.06,0.00030136,2]
[358977395,1745599848556,-979.12,0.00030136,2]
[358977396,1745599848568,-549.21664328,0.00030136,2]
[358977397,1745599848580,-588.95,0.00030136,2]
[358977398,1745599848592,-554.07,0.00030136,2]
[358977399,1745599848603,-500.0,0.00030136,2]
[358977400,1745599848614,-500.0,0.00030136,2]
[358977401,1745599848625,-500.0,0.00030136,2]
[358977402,1745599848636,-1039.35,0.00030136,2]
[358977403,1745599848647,-500.0,0.00030136,2]
[358977404,1745599848660,-500.0,0.00030136,2]
[358977405,1745599848671,-500.0,0.00030136,2]
[358977406,1745599848682,-1434.94,0.00030136,2]
[358977407,1745599848693,-500.0,0.00030136,2]
[358977408,1745599848705,-500.0,0.00030136,2]
[358977409,1745599848716,-765.99,0.00030136,2]
[358977410,1745599848727,-552.32,0.00030136,2]
[358977411,1745599848738,-948.3,0.00030136,2]
[358977412,1745599848750,-500.0,0.00030136,2]
[358977413,1745599848761,-500.0,0.00030136,2]
[358977414,1745599848773,-500.0,0.00030136,2]
[358977415,1745599848786,-500.0,0.00030136,2]
[358977416,1745599848798,-530.8658182,0.00030136,2]
[358977417,1745599848809,-933.87,0.00030136,2]
[358977418,1745599848820,-500.0,0.00030136,2]
[358977419,1745599848832,-1160.83,0.00030136,2]
[358977420,1745599848843,-500.0,0.00030136,2]
[358977421,1745599848855,-500.0,0.00030136,2]
[358977422,1745599848867,-500.0,0.00030136,2]
[358977423,1745599848879,-500.0,0.00030136,2]
[358977424,1745599848890,-538.09977851,0.00030136,2]
[358977425,1745599848902,-500.0,0.00030136,2]
[358977426,1745599848914,-636.99,0.00030136,2]
[358977427,1745599848926,-500.0,0.00030136,2]
[358977428,1745599848937,-500.0,0.00030136,2]
[358977429,1745599848949,-519.06923262,0.00030136,2]
[358977430,1745599848960,-500.0,0.00030136,2]
[358977431,1745599848971,-260.01884086,0.00030136,2]
[358977432,1745599848982,-538.553582,0.00030136,2]
[358977433,1745599848993,-500.0,0.00030136,2]
[358977434,1745599849004,-500.0,0.00030136,2]
[358977435,1745599849015,-671.52,0.00030136,2]
[358977436,1745599849027,-500.0,0.00030136,2]
[358977437,1745599849038,-507.43,0.00030136,2]
[358977438,1745599849049,-510.55729179,0.00030136,2]
[358977439,1745599849060,-508.776476,0.00030136,2]
[358977440,1745599849073,-500.0,0.00030136,2]
[358977441,1745599849083,-500.0,0.00030136,2]
[358977442,1745599849094,-1854.8,0.00030136,2]
[358977443,1745599849106,-500.0,0.00030136,2]
[358977444,1745599849117,-500.0,0.00030136,2]
[358977445,1745599849128,-500.0,0.00030136,2]
[358977446,1745599849139,-515.35,0.00030136,2]
[358977447,1745599849150,-500.0,0.00030136,2]
[358977448,1745599849161,-500.0,0.00030136,2]
[358977449,1745599849172,-500.0,0.00030136,2]
[358977450,1745599849184,-500.0,0.00030136,2]
[358977451,1745599849195,-500.0,0.00030136,2]
[358977452,1745599849206,-811.56,0.00030136,2]
[358977453,1745599849217,-889.04,0.00030136,2]
[358977454,1745599849228,-893.7,0.00030136,2]
[358977455,1745599849239,-500.0,0.00030136,2]
[358977456,1745599849251,-500.0,0.00030136,2]
[358977457,1745599849262,-1101.13,0.00030136,2]
[358977458,1745599849273,-500.0,0.00030136,2]
[358977459,1745599849284,-907.73,0.00030136,2]
[358977460,1745599849295,-500.0,0.00030136,2]
[358977461,1745599849308,-608.32,0.00030136,2]
[358977462,1745599849319,-531.07,0.00030136,2]
[358977463,1745599849330,-1093.95,0.00030136,2]
[358977464,1745599849340,-500.0,0.00030136,2]
[358977465,1745599849351,-552.29,0.00030136,2]
[358977466,1745599849361,-500.0,0.00030136,2]
[358977467,1745599849372,-500.0,0.00030136,2]
[358977468,1745599849383,-678.22,0.00030136,2]
[358977469,1745599849394,-990.01,0.00030136,2]
[358977470,1745599849406,-431.58615479,0.00030136,2]
[358977471,1745599849417,-580.09949709,0.00030136,2]
[358977472,1745599849428,-534.52215006,0.00030136,2]
[358977473,1745599849439,-500.0,0.00030136,2]
[358977474,1745599849450,-500.0,0.00030136,2]
[358977475,1745599849461,-500.0,0.00030136,2]
[358977476,1745599849472,-500.0,0.00030136,2]
[358977477,1745599849483,-500.0,0.00030136,2]
[358977478,1745599849493,-500.0,0.00030136,2]
[358977479,1745599849504,-627.82,0.00030136,2]
[358977480,1745599849513,-500.0,0.00030136,2]
[358977481,1745599849523,-706.88,0.00030136,2]
[358977482,1745599849535,-592.2357426,0.00030136,2]
[358977483,1745599849545,-500.0,0.00030136,2]
[358977484,1745599849555,-500.0,0.00030136,2]
[358977485,1745599849565,-500.0,0.00030136,2]
[358977486,1745599849575,-1079.1,0.00030136,2]
[358977487,1745599849586,-500.0,0.00030136,2]
[358977488,1745599849596,-500.0,0.00030136,2]
[358977489,1745599849606,-859.92,0.00030136,2]
[358977490,1745599849616,-500.0,0.00030136,2]
[358977491,1745599849626,-912.21,0.00030136,2]
[358977492,1745599849636,-500.0,0.00030136,2]
[358977493,1745599849646,-500.0,0.00030136,2]
[358977494,1745599849656,-500.0,0.00030136,2]
[358977495,1745599849666,-500.0,0.00030136,2]
[358977496,1745599849676,-722.61,0.00030136,2]
[358977497,1745599849686,-618.99826618,0.00030136,2]
[358977498,1745599849697,-500.0,0.00030136,2]
[358977499,1745599849708,-500.0,0.00030136,2]
[358977500,1745599849718,-530.70339973,0.00030136,2]
[358977501,1745599849731,-1379.45,0.00030136,2]
[358977502,1745599849743,-500.0,0.00030136,2]
[358977503,1745599849754,-500.0,0.00030136,2]
[358977504,1745599849764,-383.81,0.00030136,2]
[358977505,1745599849774,-1343.31,0.00030136,2]
[358977506,1745599849785,-500.0,0.00030136,2]
[358977507,1745599849797,-733.04,0.00030136,2]
[358977508,1745599849807,-500.0,0.00030136,2]
[358977509,1745599849817,-528.69857189,0.00030136,2]
[358977510,1745599849829,-500.0,0.00030136,2]
[358977511,1745599849840,-4684.45,0.00030136,2]
[358977512,1745599849850,-500.0,0.00030136,2]
[358977513,1745599849860,-565.43063681,0.00030136,2]
[358977514,1745599849871,-523.65395542,0.00030136,2]
[358977515,1745599849881,-500.0,0.00030136,2]
[358977516,1745599849891,-500.0,0.00030136,2]
[358977517,1745599849902,-563.02603895,0.00030136,2]
[358977518,1745599849912,-825.76,0.00030136,2]
[358977519,1745599849923,-19958.18,0.00030136,2]
[358977520,1745599849933,-216.49481157,0.00030136,2]
[358977521,1745599850879,-283.50518843,0.00030136,2]
[358977522,1745599850890,-500.0,0.00030136,2]
[358977523,1745599850899,-500.0,0.00030136,2]
[358977524,1745599850910,-500.0,0.00030136,2]
[358977525,1745599850919,-541.7591672,0.00030136,2]
[358977526,1745599850932,-529.23898337,0.00030136,2]
[358977527,1745599850943,-685.95,0.00030136,2]
[358977528,1745599850953,-950.51,0.00030136,2]
[358977529,1745599850963,-500.0,0.00030136,2]
[358977530,1745599850973,-500.0,0.00030136,2]
[358977531,1745599850983,-542.59400762,0.00030136,2]
[358977532,1745599850992,-500.0,0.00030136,2]
[358977533,1745599851002,-616.88,0.00030136,2]
[358977534,1745599851012,-500.0,0.00030136,2]
[358977535,1745599851023,-500.0,0.00030136,2]
[358977536,1745599851034,-500.0,0.00030136,2]
[358977537,1745599851044,-500.0,0.00030136,2]
[358977538,1745599851053,-500.0,0.00030136,2]
[358977539,1745599851063,-500.0,0.00030136,2]
[358977540,1745599851072,-500.0,0.00030136,2]
[358977541,1745599851082,-500.0,0.00030136,2]
[358977542,1745599851091,-500.0,0.00030136,2]
[358977543,1745599851102,-541.38962761,0.00030136,2]
[358977544,1745599851111,-500.0,0.00030136,2]
[358977545,1745599851121,-500.0,0.00030136,2]
[358977546,1745599851131,-500.0,0.00030136,2]
[358977547,1745599851141,-500.0,0.00030136,2]
[358977548,1745599851150,-513.40779494,0.00030136,2]
[358977549,1745599851162,-500.0,0.00030136,2]
[358977550,1745599851172,-500.000001,0.00030136,2]
[358977551,1745599851183,-10406.43,0.00030136,2]
[358977552,1745599851193,-500.0,0.00030136,2]
[358977553,1745599851203,-500.0,0.00030136,2]
[358977554,1745599851213,-500.0,0.00030136,2]
[358977555,1745599851223,-500.0,0.00030136,2]
[358977556,1745599851233,-500.0,0.00030136,2]
[358977557,1745599851243,-532.42338561,0.00030136,2]
[358977558,1745599851253,-500.0,0.00030136,2]
[358977559,1745599851264,-500.0,0.00030136,2]
[358977560,1745599851274,-588.55717694,0.00030136,2]
[358977561,1745599851283,-569.59057456,0.00030136,2]
[358977562,1745599851294,-500.0,0.00030136,2]
[358977563,1745599851304,-500.0,0.00030136,2]
[358977564,1745599851313,-535.02594011,0.00030136,2]
[358977565,1745599851323,-500.0,0.00030136,2]
[358977566,1745599851332,-500.0,0.00030136,2]
[358977567,1745599851342,-500.0,0.00030136,2]
[358977568,1745599851352,-563.62,0.00030136,2]
[358977569,1745599851362,-4004.55,0.00030136,2]
[358977570,1745599851372,-1088.33,0.00030136,2]
[358977571,1745599851382,-966.4,0.00030136,2]
[358977572,1745599851392,-500.0,0.00030136,2]
[358977573,1745599851402,-500.0,0.00030136,2]
[358977574,1745599851412,-524.26,0.00030136,2]
[358977575,1745599851422,-500.0,0.00030136,2]
[358977576,1745599851431,-500.0,0.00030136,2]
[358977577,1745599851441,-500.0,0.00030136,2]
[358977578,1745599851451,-500.0,0.00030136,2]
[358977579,1745599851461,-1005.04,0.00030136,2]
[358977580,1745599851470,-500.0,0.00030136,2]
[358977581,1745599851480,-1001.96,0.00030136,2]
[358977582,1745599851490,-500.0,0.00030136,2]
[358977583,1745599851501,-816.95,0.00030136,2]
[358977584,1745599851511,-500.0,0.00030136,2]
[358977585,1745599851522,-500.0,0.00030136,2]
[358977586,1745599851531,-500.0,0.00030136,2]
[358977587,1745599851541,-500.0,0.00030136,2]
[358977588,1745599851551,-500.0,0.00030136,2]
[358977589,1745599851561,-526.2759447,0.00030136,2]
[358977590,1745599851571,-531.36469204,0.00030136,2]
[358977591,1745599851581,-500.0,0.00030136,2]
[358977592,1745599851592,-500.0,0.00030136,2]
[358977593,1745599851603,-500.0,0.00030136,2]
[358977594,1745599851613,-500.0,0.00030136,2]
[358977595,1745599851623,-500.0,0.00030136,2]
[358977596,1745599851633,-500.0,0.00030136,2]
[358977597,1745599851643,-852.32,0.00030136,2]
[358977598,1745599851653,-500.0,0.00030136,2]
[358977599,1745599851665,-528.97581744,0.00030136,2]
[358977600,1745599851675,-711.88,0.00030136,2]
[358977601,1745599851685,-500.0,0.00030136,2]
[358977602,1745599851695,-500.0,0.00030136,2]
[358977603,1745599851705,-500.0,0.00030136,2]
[358977604,1745599851715,-934.03,0.00030136,2]
[358977605,1745599851727,-511.48675181,0.00030136,2]
[358977606,1745599851736,-500.0,0.00030136,2]
[358977607,1745599851747,-159.74190709,0.00030136,2]
[358977608,1745599851757,-500.0,0.00030136,2]
[358977609,1745599851767,-500.0,0.00030136,2]
[358977610,1745599851777,-560.45,0.00030136,2]
[358977611,1745599851789,-500.0,0.00030136,2]
[358977612,1745599851799,-6136.81,0.00030136,2]